fUSD/lending_fUSD_20240126
["ID","MTS","AMOUNT","RATE_DAILY","PERIOD"]
[312813797,1706291432721,-204.0,0.0002935,2]
[312813798,1706291432731,-204.0,0.0002935,2]
[312813799,1706291432740,-287.4,0.00029416,2]
[312813800,1706291432750,-9320.58,0.00029449,2]
[312813801,1706291432759,-423.69,0.00029472,2]
[312813802,1706291432769,-3659.9084,0.00029569,2]
[312813803,1706291432778,-423.69,0.00029637,2]
[312813804,1706291432787,-159.78,0.00029776,2]
[312813805,1706291432796,-175.77811958,0.000298,2]
[312813806,1706291432806,-423.69,0.00029803,2]
[312813807,1706291432815,-203.0,0.0002983,2]
[312813808,1706291432824,-204.0,0.0002983,2]
[312813809,1706291432833,-204.0,0.0002983,2]
[312813810,1706291432842,-287.4,0.00029848,2]
[312813811,1706291432852,-423.69,0.00029968,2]
[312813812,1706291432861,-173.12219542,0.0003,4]
[312813813,1706291432870,-150.0,0.0003,7]
[312813814,1706291432879,-155.0,0.00030082,2]
[312813815,1706291432889,-251.68,0.00030083,2]
[312813816,1706291432899,-423.69,0.00030134,2]
[312813817,1706291432909,-287.4,0.00030281,2]
[312813818,1706291432919,-209.0,0.00030289,2]
[312813819,1706291432929,-203.0,0.0003031,2]
[312813820,1706291432938,-204.0,0.0003031,2]
[312813821,1706291432949,-204.0,0.0003031,2]
[312813822,1706291432961,-155.0,0.000305,4]
[312813823,1706291432972,-380.5384412,0.000305,4]
[312813824,1706291432982,-155.0,0.000305,4]
[312813825,1706291432993,-500.0,0.000305,2]
[312813826,1706291433003,-155.0,0.000305,4]
[312813827,1706291433013,-200.0,0.000305,2]
[312813828,1706291433022,-1972.82043966,0.000305,2]
[312813829,1706291433032,-3424.51949567,0.000305,5]
[312813830,1706291433041,-820.92321183,0.000305,4]
[312813831,1706291433051,-287.4,0.00030714,2]
[312813832,1706291433062,-3194.07254394,0.00030717,2]
[312813833,1706291433072,-168.81,0.00030751,2]
[312813834,1706291433082,-203.0,0.0003079,2]
[312813835,1706291433093,-204.0,0.0003079,2]
[312813836,1706291433103,-204.0,0.0003079,2]
[312813837,1706291433114,-400.0,0.00030843,2]
[312813838,1706291433124,-700.0,0.00031,3]
[312813839,1706291433134,-10000.0,0.00031,2]
[312813840,1706291433144,-1772.31981003,0.0003106,30]
[312813841,1706291433156,-1807.84533026,0.00031063,4]
[312813842,1706291433166,-251.68,0.00031119,2]
[312813843,1706291433176,-287.4,0.00031146,2]
[312813844,1706291433186,-374.99862499,0.00031158,2]
[312813845,1706291433196,-1042.75274625,0.00031158,2]
[312813846,1706291433205,-446.45420977,0.00031159,4]
[312813847,1706291433215,-12587.09841226,0.00031159,4]
[312813848,1706291433226,-66092.95028223,0.0003116,7]
[312813849,1706291433235,-43124.07694075,0.0003116,7]
[312813850,1706291433244,-11871.99550488,0.0003116,7]
[312813851,1706291433253,-159.78,0.00031194,2]
[312813852,1706291433262,-154.14,0.00031231,2]
[312813853,1706291433276,-203.0,0.0003127,2]
[312813854,1706291433286,-204.0,0.0003127,2]
[312813855,1706291433295,-204.0,0.0003127,2]
[312813856,1706291433306,-273.88,0.00031365,2]
[312813857,1706291433316,-201.9729,0.00031447,2]
[312813858,1706291433325,-287.4,0.00031579,2]
[312813859,1706291433335,-180.0,0.00031644,2]
[312813860,1706291433344,-203.0,0.0003174,2]
[312813861,1706291433353,-204.0,0.0003174,2]
[312813862,1706291433365,-204.0,0.0003174,2]
[312813863,1706291433374,-418.59902367,0.00031997,4]
[312813864,1706291433384,-155.0,0.00031997,4]
[312813865,1706291433397,-381.73382105,0.00031997,4]
[312813866,1706291433406,-377.34062338,0.00031997,4]
[312813867,1706291433417,-1257.66975103,0.00031997,4]
[312813868,1706291433428,-160.85063885,0.00031997,4]
[312813869,1706291433437,-1179.63525431,0.00031997,4]
[312813870,1706291433446,-155.0,0.00031998,4]
[312813871,1706291433455,-155.0,0.00031998,4]
[312813872,1706291433465,-2309.54511602,0.00031998,4]
[312813873,1706291433474,-155.0,0.00032,2]
[312813874,1706291433483,-18792.69001867,0.00032,2]
[312813875,1706291433492,-12000.0,0.00032,3]
[312813876,1706291433501,-287.4,0.00032011,2]
[312813877,1706291433510,-1590.42891133,0.00032046,2]
[312813878,1706291433519,-251.68,0.00032155,2]
[312813879,1706291433528,-369.0,0.000322,2]
[312813880,1706291433537,-203.0,0.0003222,2]
[312813881,1706291433546,-204.0,0.0003222,2]
[312813882,1706291433555,-204.0,0.0003222,2]
[312813883,1706291433564,-600.0,0.00032236,2]
[312813884,1706291433573,-150.53734,0.00032372,2]
[312813885,1706291433582,-400.0,0.000324,11]
[312813886,1706291433591,-211.03526592,0.000324,2]
[312813887,1706291433706,-211.03526588,0.000324,2]
[312813888,1706291433717,-211.03526588,0.000324,2]
[312813889,1706291433726,-211.03526588,0.000324,2]
[312813890,1706291433735,-159.59922387,0.00032427,6]
[312813891,1706291433744,-200.0,0.00032438,3]
[312813892,1706291433753,-205.895791,0.00032438,3]
[312813893,1706291433762,-800.0,0.00032438,3]
[312813894,1706291433771,-287.4,0.00032444,2]
[312813895,1706291433780,-289.52666185,0.00032475,2]
[312813896,1706291433789,-900.0,0.000325,11]
[312813897,1706291433798,-4386.98240318,0.00032596,14]
[312813898,1706291433807,-800.9031,0.00032596,2]
[312813899,1706291433816,-170.3308,0.00032596,2]
[312813900,1706291433825,-169.31838675,0.00032598,2]
[312813901,1706291433834,-152.5347361,0.00032599,2]
[312813902,1706291433843,-433.29318187,0.000326,4]
[312813903,1706291433852,-2000.0,0.000326,4]
[312813904,1706291433861,-5000.0,0.000326,3]
[312813905,1706291433870,-1400.0,0.000326,11]
[312813906,1706291433879,-849.0213662,0.000326,2]
[312813907,1706291433888,-1336.1975887,0.000326,2]
[312813908,1706291433897,-190.50203769,0.000326,2]
[312813909,1706291433907,-159.78,0.00032612,2]
[312813910,1706291433916,-268.3079696,0.0003264,4]
[312813911,1706291433925,-257094.8783008,0.0003265,2]
[312813912,1706291433934,-2337.63917576,0.00032695,14]
[312813913,1706291433943,-3862.48921522,0.00032695,4]
[312813914,1706291433952,-256.2143402,0.00032696,4]
[312813915,1706291433960,-200.0,0.00032696,4]
[312813916,1706291433970,-19136.40404097,0.00032696,4]
[312813917,1706291433979,-310.0,0.00032696,2]
[312813918,1706291433988,-56269.90375306,0.00032696,2]
[312813919,1706291434180,-297.50731254,0.00032696,2]
[312813920,1706291434195,-11158.6150549,0.00032696,2]
[312813921,1706291434207,-532.47114706,0.00032696,2]
[312813922,1706291434222,-9000.0,0.00032696,2]
[312813923,1706291434233,-753.8500003,0.00032696,2]
[312813925,1706291440076,-163.79257231,0.00025029,2]
[312813926,1706291440085,-618.49496477,0.0002912,7]
[312813927,1706291440133,-381.50503523,0.0002912,7]
[312813928,1706291440144,-576.52963567,0.0003,2]
[312813929,1706291440190,-3423.47036433,0.0003,2]
[312813930,1706291440200,-211.03526588,0.000324,2]
[312813931,1706291440209,-211.03526588,0.000324,2]
[312813932,1706291440218,-287.17527812,0.000326,21]
[312813933,1706291440227,-18288.29339902,0.00032696,2]
[312813934,1706291440240,-29702.65970967,0.00032696,2]
[312813935,1706291440252,-12899.59531826,0.00032696,2]
[312813936,1706291440274,-47865.81800007,0.00032696,2]
[312813937,1706291440290,-2005.097984,0.00032696,2]
[312813938,1706291440303,-2840.39685999,0.00032696,2]
[312813939,1706291440371,-2259.19680189,0.00032696,2]
[312813940,1706291440382,-363.04147138,0.00032696,2]
[312813942,1706291440544,-40324.3860151,0.00032696,2]
[312813943,1706291440604,-186989.34909535,0.00032696,2]
[312813946,1706291440616,-360.0332402,0.00032696,2]
[312814005,1706291441271,-1135.25,0.00032696,2]
[312814028,1706291443170,-163.79257231,0.00026543,2]
[312814029,1706291443180,-1931.85435519,0.00032696,2]
[312814104,1706291621084,341.38738642,0.00022999,10]
[312814106,1706291736625,229.74022248,0.0002535,10]
[312814107,1706291796164,1000.0,0.00027,7]
[312814108,1706291882210,183.79217798,0.0002535,10]
[312814109,1706292030673,429.12,0.00019727,2]
[312814110,1706292076717,250.0,0.00021599,2]
[312814111,1706292085594,23890.0,0.00021553,2]
[312814112,1706292113155,201.44,0.00021553,2]
[312814113,1706292131677,807.89754945,0.00021553,2]
[312814114,1706292148294,889.58,0.00021599,2]
[312814115,1706292149678,807.89754945,0.00021553,2]
[312814116,1706292167678,807.89754945,0.00021553,2]
[312814117,1706292189687,807.89754945,0.00021553,2]
[312814118,1706292199063,159.78,0.00021561,2]
[312814119,1706292211681,807.89754945,0.00021553,2]
[312814120,1706292218922,150.53734,0.00021383,2]
[312814121,1706292231675,807.89754945,0.00021553,2]
[312814122,1706292245643,611.00141909,0.00021383,2]
[312814123,1706292249697,807.89754945,0.00021383,2]
[312814124,1706292261459,611.35790509,0.00021383,2]
[312814125,1706292267698,922.7581244,0.00021383,2]
[312814126,1706292270704,-2320.0,0.00021643,2]
[312814127,1706292377238,1516.92,0.0002144,2]
[312814128,1706292447174,170.75,0.00021252,2]
[312814129,1706292448737,300.0,0.000225,8]
[312814130,1706292450855,600.0,0.000226,8]
[312814131,1706292452989,1000.0,0.000227,8]
[312814132,1706292455089,1300.0,0.000228,8]
[312814133,1706292457294,1700.0,0.000229,8]
[312814134,1706292496725,200.0,0.00021273,2]
[312814135,1706292504571,407.66,0.00019434,2]
[312814136,1706292508351,3912.28,0.00021565,2]
[312814137,1706292562797,201.44,0.00021315,2]
[312814138,1706292583647,444.79,0.0002131,2]
[312814154,1706292632210,-171.70472139,0.00021631,2]
[312814155,1706292632219,-477.23853773,0.00021631,2]
[312814156,1706292632231,-574.72252593,0.00021631,2]
[312814157,1706292632240,-173.9527941,0.00021632,2]
[312814158,1706292632252,-126.0472059,0.00021632,2]
[312814159,1706292632261,-481.98,0.00021644,2]
[312814160,1706292632270,-245.87483377,0.00021644,2]
[312814161,1706292632283,-446.40254625,0.00021644,2]
[312814162,1706292632295,-307.72261998,0.00021644,2]
[312814163,1706292632304,-190.97338002,0.00021644,2]
[312814164,1706292632315,-587.5153374,0.00021644,2]
[312814165,1706292632327,-250.0,0.00021644,2]
[312814166,1706292632347,-971.51128258,0.00021644,2]
[312814167,1706292632364,-486.58,0.00021652,2]
[312814168,1706292632374,-407.66,0.00021698,2]
[312814169,1706292632387,-159.76,0.00021727,2]
[312814170,1706292632397,-165.82,0.00021801,2]
[312814171,1706292632407,-197.80383742,0.00021801,2]
[312814172,1706292632419,-488.21616258,0.00021801,2]
[312814173,1706292632428,-480.23653015,0.00021869,2]
[312814190,1706292632680,-1085.60346985,0.00021869,2]
[312814192,1706292632690,-499.99,0.00021869,2]
[312814194,1706292632699,-150.99,0.00021869,2]
[312814196,1706292632709,-159.76,0.00021869,2]
[312814198,1706292632720,-250.0,0.00021918,2]
[312814200,1706292632731,-218.91517759,0.00021918,3]
[312814202,1706292632743,-192.30482241,0.00021918,3]
[312814204,1706292632752,-1973.66,0.00021918,2]
[312814206,1706292632761,-2284.79,0.00021918,2]
[312814208,1706292632771,-166.40732388,0.00021999,2]
[312814210,1706292632780,-176.58,0.00022,2]
[312814212,1706292632790,-150.0,0.00022,2]
[312814214,1706292632801,-159.76,0.0002201,2]
[312814216,1706292632810,-1403.70395459,0.00022077,2]
[312814218,1706292632821,-3308.75824519,0.0002209,2]
[312814220,1706292632831,-636.53565394,0.00022099,2]
[312814223,1706292632863,-15335.58031545,0.00022099,2]
[312814226,1706292632875,-10468.8,0.00022099,2]
[312814228,1706292632891,-1738.28013673,0.00022099,2]
[312814230,1706292632902,-980.92,0.00022099,2]
[312814249,1706292633074,-198.25986511,0.000221,2]
[312814251,1706292633084,-155.2215676,0.000221,2]
[312814253,1706292633094,-257.46628565,0.000221,2]
[312814255,1706292633103,-155.0,0.000221,2]
[312814257,1706292633112,-155.21885268,0.000221,2]
[312814259,1706292633121,-533.51070887,0.000221,2]
[312814260,1706292633130,-183.48732554,0.000221,2]
[312814261,1706292633140,-890.15110927,0.000221,2]
[312814262,1706292633149,-159.76,0.00022152,2]
[312814263,1706292633158,-166.40732384,0.00022179,2]
[312814264,1706292633167,-159.76,0.00022293,2]
[312814265,1706292633176,-32.11195623,0.00022338,2]
[312814266,1706292633188,-2319.75960606,0.00022338,2]
[312814267,1706292633199,-2454.46843771,0.00022338,2]
[312814268,1706292633208,-166.40732384,0.00022359,2]
[312814269,1706292633218,-159.76,0.00022435,2]
[312814270,1706292633228,-481.98,0.00022445,2]
[312814271,1706292633237,-166.40732384,0.0002254,2]
[312814272,1706292633247,-350.44885641,0.00022548,2]
[312814273,1706292633256,-159.76,0.00022576,2]
[312814274,1706292633265,-159.59922382,0.00022699,2]
[312814275,1706292633274,-159.76,0.00022718,2]
[312814276,1706292633283,-166.40732384,0.0002272,2]
[312814277,1706292633292,-312714.78398576,0.00022798,2]
[312814278,1706292633304,-127692.15014309,0.00022798,2]
[312814279,1706292633315,-662.815,0.00022798,2]
[312814280,1706292633326,-770.6744694,0.00022798,2]
[312814281,1706292633338,-1502.28437207,0.00022798,2]
[312814282,1706292633350,-2784.51649125,0.00022798,2]
[312814283,1706292633362,-479.70601001,0.00022798,2]
[312814284,1706292633373,-1603.04621236,0.00022798,2]
[312814285,1706292633387,-443.83597126,0.00022798,2]
[312814286,1706292633399,-333.92943009,0.00022798,2]
[312814287,1706292633410,-5958.5,0.00022798,2]
[312814305,1706292638324,-8325.56001927,0.00022798,2]
[312814306,1706292638337,-672.77936965,0.00022798,2]
[312814307,1706292638349,-439.01710001,0.00022798,2]
[312814308,1706292638360,-478.19295486,0.00022798,2]
[312814309,1706292638372,-543.68032293,0.00022798,2]
[312814310,1706292638415,-909.5818,0.00022798,2]
[312814311,1706292638428,-4889.44452153,0.00022798,2]
[312814312,1706292638441,-23725.37049989,0.00022798,2]
[312814313,1706292638454,-3077.77406271,0.00022798,2]
[312814314,1706292638467,-130894.71347221,0.00022798,2]
[312814315,1706292638490,-2101.5,0.00022798,2]
[312814316,1706292638502,-4917.8362165,0.00022798,2]
[312814317,1706292638514,-43293.91856156,0.00022798,2]
[312814318,1706292638526,-868.95680594,0.00022798,2]
[312814319,1706292638540,-652.69310717,0.00022798,2]
[312814320,1706292638552,-4878.25629651,0.00022798,2]
[312814542,1706292640796,-1448.69399018,0.00022798,2]
[312814560,1706292640880,-1242.08461943,0.00022798,2]
[312814579,1706292641018,-81035.58407745,0.00022798,2]
[312814581,1706292641030,-52583.23137335,0.00022798,2]
[312814661,1706292643555,-236718.14581328,0.00022798,2]
[312814662,1706292643566,-800.9031,0.00022799,2]
[312814663,1706292643575,-170.3308,0.00022799,2]
[312814664,1706292643584,-289288.2227,0.00022799,2]
[312814665,1706292643594,-627.1396603,0.000228,2]
[312814666,1706292643603,-3991.18854436,0.000228,2]
[312814667,1706292643613,-169.31838675,0.000228,2]
[312814668,1706292643623,-159.76,0.00022859,2]
[312814669,1706292643636,-156.11668877,0.00022898,2]
[312814670,1706292643648,-166.40732384,0.000229,2]
[312814671,1706292643657,-152.46937487,0.000229,2]
[312814672,1706292643667,-1058.56868024,0.000229,2]
[312814673,1706292643677,-190.50203769,0.000229,2]
[312814674,1706292643688,-849.0213662,0.000229,2]
[312814675,1706292643698,-2618.3024933,0.000229,2]
[312814676,1706292643711,-1336.1975887,0.000229,2]
[312814677,1706292643720,-171.98,0.00022987,2]
[312814678,1706292643729,-29204.7081572,0.00022997,2]
[312814679,1706292643739,-598.62692075,0.00022997,2]
[312814680,1706292643748,-3862.48921522,0.00022997,2]
[312814681,1706292643757,-319.23605445,0.00022998,2]
[312814682,1706292643768,-380.31380972,0.00022998,2]
[312814683,1706292643779,-209.75675693,0.00022998,2]
[312814685,1706292643924,-1337.5918033,0.00022998,2]
[312814686,1706292643934,-1191.54006023,0.00022998,2]
[312814687,1706292643943,-608.07641091,0.00022998,2]
[312814688,1706292643953,-180.90411052,0.00022998,2]
[312814689,1706292643962,-209.26071767,0.00022999,2]
[312814691,1706292643972,-264.59547339,0.00022999,2]
[312814693,1706292643981,-281.30437133,0.00022999,2]
[312814694,1706292643990,-357157.64928457,0.00023,2]
[312814695,1706292644003,-428160.83801333,0.00023,2]
[312814696,1706292644033,-2726.13025412,0.00023,2]
[312814697,1706292644044,-6441.60310188,0.00023,2]
[312814698,1706292644056,-41537.36529196,0.00023,2]
[312814699,1706292644069,-243163.14340044,0.00023,2]
[312814700,1706292644081,-6977.6865825,0.00023,2]
[312814701,1706292644097,-5042.33487039,0.00023,2]
[312814702,1706292644109,-55208.64960001,0.00023,2]
[312814703,1706292644120,-362.0608339,0.00023,2]
[312814704,1706292644131,-12605.3604,0.00023,2]
[312814705,1706292644143,-689.05942203,0.00023,2]
[312814708,1706292646375,-3975.58146488,0.00023,2]
[312814709,1706292646390,-752.20274444,0.00023,2]
[312814710,1706292646405,-409.248,0.00023,2]
[312814711,1706292646417,-813.26,0.00023,2]
[312814712,1706292646482,-1391452.68211377,0.00023,2]
[312814713,1706292646492,-79688.36699575,0.00023,2]
[312814714,1706292646505,-263.33501076,0.00023,2]
[312814715,1706292646519,-2273.79999999,0.00023,2]
[312814716,1706292646531,-1742.85,0.00023,2]
[312814717,1706292646544,-79997.4422999,0.00023,2]
[312814831,1706292665443,6089.46292903,0.0002131,2]
[312814832,1706292751944,6094.03630471,0.0002131,2]
[312814833,1706292758047,157.02733772,0.0002131,2]
[312814834,1706292759543,155.0,0.0002131,2]
[312814835,1706292763030,857.87443043,0.0002131,2]
[312814836,1706292767974,6084.88955335,0.0002131,2]
[312814837,1706292774341,885.62248904,0.0002131,2]
[312814838,1706292775161,155.0,0.0002131,2]
[312814839,1706292776033,157.02733772,0.0002131,2]
[312814840,1706292786030,267.15292209,0.0002131,2]
[312814841,1706292787036,853.74635769,0.0002131,2]
[312814842,1706292796060,157.02733772,0.0002131,2]
[312814843,1706292798027,267.15292209,0.0002131,2]
[312814844,1706292800018,1264.1,0.0002131,2]
[312814845,1706292814040,155.84061819,0.0002131,2]
[312814846,1706292816046,267.15292209,0.0002131,2]
[312814847,1706292832038,267.15292209,0.0002131,2]
[312814848,1706292846093,601.85065831,0.00023,20]
[312814849,1706292850034,386.83025885,0.0002131,2]
[312814850,1706292853929,1045.03284629,0.0002131,2]
[312814851,1706292870272,221.11062984,0.0002131,2]
[312814852,1706292965983,459.62,0.00020097,2]
[312814853,1706293080611,847.35764479,0.00020097,2]
[312814854,1706293098552,847.35764479,0.00020097,2]
[312814855,1706293099227,1099.06361557,0.00020097,2]
[312814856,1706293103211,500.0,0.00020097,2]
[312814857,1706293117222,603.83852432,0.00020097,2]
[312814858,1706293118563,279.5315692,0.00020097,2]
[312814859,1706293119135,533.75788513,0.00020097,2]
[312814860,1706293123200,500.0,0.00020097,2]
[312814861,1706293141198,293.40631255,0.00020097,2]
[312814862,1706293143133,533.34871057,0.00020097,2]
[312814863,1706293177464,2000.0,0.00021605,2]
[312814864,1706293223175,162.05516772,0.00021558,2]
[312814865,1706293252453,8353.654265,0.00021545,2]
[312814866,1706293264724,800.0,0.00021604,2]
[312814867,1706293291396,2183.66093609,0.00021388,2]
[312814868,1706293313136,857.29441409,0.00021604,2]
[312814869,1706293315385,2183.3931938,0.00021388,2]
[312814870,1706293315684,5194.03576086,0.00021604,2]
[312814871,1706293327350,155.0,0.00021604,2]
[312814872,1706293327816,361.34078725,0.00021604,2]
[312814873,1706293329638,18997.99686631,0.00021604,2]
[312814874,1706293330187,237.25,0.00021552,2]
[312814875,1706293332325,155.0,0.00021604,2]
[312814876,1706293334012,3131.46884188,0.00021603,2]
[312814877,1706293350136,5649.39330884,0.00021604,2]
[312814878,1706293352067,1100.38252904,0.00021559,2]
[312814879,1706293378163,8266.4237923,0.00021604,2]
[312814880,1706293383816,361.34078725,0.00021604,2]
[312814881,1706293383918,1033.92055253,0.00021604,2]
[312814882,1706293384856,155.0,0.00021604,2]
[312814883,1706293391172,533.37470322,0.00021559,2]
[312814884,1706293393332,242.88431625,0.00021559,2]
[312814885,1706293398140,18976.97972243,0.00021559,2]
[312814886,1706293399144,857.29441409,0.00021559,2]
[312814887,1706293399506,155.0,0.00021559,2]
[312814888,1706293400379,292.48115606,0.00021559,2]
[312814889,1706293404337,155.0,0.00021559,2]
[312814890,1706293405398,1894.97702682,0.00021559,2]
[312814891,1706293405919,1033.92055253,0.00021559,2]
[312814892,1706293406852,263.23464751,0.00021559,2]
[312814893,1706293412476,884.97645784,0.00021559,2]
[312814894,1706293416339,292.48115606,0.00021559,2]
[312814901,1706293417265,857.29441409,0.00021559,2]
[312814902,1706293417303,533.37470322,0.00021559,2]
[312814903,1706293418641,18976.97972243,0.00021559,2]
[312814904,1706293421415,1894.97702682,0.00021559,2]
[312814910,1706293423833,361.34078725,0.00021559,2]
[312814911,1706293424345,189.44894637,0.00021559,2]
[312814912,1706293425922,1033.92055253,0.00021559,2]
[312814936,1706293428474,885.29825043,0.00021559,2]
[312815200,1706293435162,533.37470322,0.00021559,2]
[312815348,1706293438643,18976.97972243,0.00021559,2]
[312815367,1706293439142,857.29441409,0.00021559,2]
[312815419,1706293440338,294.80461091,0.00021559,2]
[312815481,1706293441830,361.34078725,0.00021559,2]
[312815546,1706293443386,1894.97702682,0.00021559,2]
[312815595,1706293444522,-504.75379186,0.00021634,2]
[312815597,1706293444544,-171.70472139,0.00021634,2]
[312815599,1706293444569,-155.0,0.00021635,2]
[312815601,1706293444591,-2624.33968539,0.00021635,2]
[312815603,1706293444614,-4279.3718956,0.00021635,2]
[312815605,1706293444636,-1138.41589394,0.00021635,2]
[312815607,1706293444659,-203.37710716,0.00021636,2]
[312815609,1706293444680,-155.0,0.00021636,2]
[312815611,1706293444702,-377.49486276,0.00021636,2]
[312815613,1706293444724,-199.56392096,0.00021637,2]
[312815615,1706293444746,-1000.0,0.00021637,2]
[312815616,1706293444768,-150.0,0.00021637,2]
[312815618,1706293444791,-150.0,0.00021637,2]
[312815620,1706293444815,-1180.14825816,0.00021638,2]
[312815622,1706293444839,-281.84911797,0.00021638,2]
[312815624,1706293444861,-1051.96106366,0.00021638,2]
[312815626,1706293444886,-338.17308084,0.00021639,2]
[312815628,1706293444909,-418.78043636,0.0002164,2]
[312815630,1706293444933,-2780.06002067,0.00021648,2]
[312815631,1706293444954,-200.0,0.00021663,2]
[312815632,1706293444977,-150.99,0.00021725,2]
[312815633,1706293444998,-167.66,0.00021731,2]
[312815634,1706293445020,-499.99,0.00021743,2]
[312815636,1706293445047,-162.79,0.00021766,2]
[312815638,1706293445073,-250.0,0.00021918,2]
[312815640,1706293445097,-1043.56158327,0.00022,2]
[312815642,1706293445120,-500.0,0.00022223,2]
[312815644,1706293445146,-1341.66,0.00022223,2]
[312815646,1706293445169,-876.38,0.00022223,2]
[312815648,1706293445193,-625.0,0.00022308,2]
[312815650,1706293445226,-459.62,0.00022361,2]
[312815652,1706293445249,-150.0,0.000225,2]
[312815654,1706293445276,-4036.8499,0.00022596,2]
[312815656,1706293445301,-245.71475734,0.00022672,2]
[312815658,1706293445324,-239.68782377,0.00022687,2]
[312815660,1706293445346,-12587.09841226,0.00022695,2]
[312815662,1706293445370,-659.23590661,0.00022695,2]
[312815664,1706293445395,-548429.39157038,0.00022696,2]
[312815666,1706293445418,-465.9504,0.00022697,2]
[312815668,1706293445440,-6049.26539217,0.0002275,2]
[312815669,1706293445462,-800.0,0.00022767,2]
[312815671,1706293445484,-24034.82225073,0.0002277,2]
[312815673,1706293445507,-215.71744447,0.00022772,2]
[312815675,1706293445529,-337.2296826,0.00022792,2]
[312815677,1706293445552,-346.04461687,0.00022792,2]
[312815679,1706293445575,-1812.15097522,0.00022792,2]
[312815681,1706293445597,-156.03088631,0.00022792,2]
[312815683,1706293445619,-527.36681335,0.00022792,2]
[312815685,1706293445642,-279.55344509,0.00022792,2]
[312815687,1706293445664,-3032.26696473,0.00022792,2]
[312815688,1706293445687,-697.4417975,0.00022792,2]
[312815690,1706293445709,-2723.88726317,0.00022792,2]
[312815698,1706293445870,-4356.58302865,0.00022792,2]
[312815700,1706293445893,-698.04764279,0.00022793,2]
[312815702,1706293445918,-611.16412055,0.00022793,2]
[312815704,1706293445940,-288.9673677,0.00022793,2]
[312815706,1706293445963,-218.13979493,0.00022795,2]
[312815708,1706293445986,-364.35538868,0.00022795,2]
[312815710,1706293446008,-412.67907844,0.00022795,2]
[312815712,1706293446030,-155.18600244,0.00022795,2]
[312815714,1706293446053,-156.07370626,0.00022795,2]
[312815715,1706293446076,-282.81008865,0.00022795,2]
[312815717,1706293446099,-211.90200046,0.00022795,2]
[312815719,1706293446123,-225.64734363,0.00022795,2]
[312815721,1706293446145,-767.2821241,0.00022795,2]
[312815723,1706293446166,-155.0,0.00022795,2]
[312815725,1706293446189,-2309.54511602,0.00022795,2]
[312815727,1706293446221,-1257.66975103,0.00022795,2]
[312815729,1706293446244,-2676.89996798,0.00022795,2]
[312815731,1706293446266,-155.0,0.00022795,2]
[312815733,1706293446289,-354.87715265,0.00022795,2]
[312815735,1706293446311,-160.85063885,0.00022795,2]
[312815737,1706293446336,-629.50668256,0.00022795,2]
[312815739,1706293446358,-263.22599815,0.00022795,2]
[312815741,1706293446382,-4451.1855684,0.00022795,2]
[312815743,1706293446404,-10565.92802025,0.00022795,2]
[312815744,1706293446427,-387.34833552,0.00022795,2]
[312815746,1706293446449,-488.34668104,0.00022795,2]
[312815748,1706293446472,-2624.54653552,0.00022796,2]
[312815750,1706293446493,-156.28689484,0.00022796,2]
[312815752,1706293446516,-1280.13108251,0.00022796,2]
[312815754,1706293446542,-162.79,0.000229,2]
[312815756,1706293446567,-62186.69121696,0.000229,2]
[312815758,1706293446592,-237.8275,0.000229,2]
[312815760,1706293446614,-1046.9878,0.000229,2]
[312815762,1706293446637,-1069.82214184,0.00022998,2]
[312815764,1706293446659,-527.30751011,0.00022998,2]
[312815765,1706293446681,-158.49900803,0.00022998,2]
[312815767,1706293446703,-156.12868291,0.00022998,2]
[312815769,1706293446725,-156.55145053,0.00022998,2]
[312815771,1706293446747,-248.75310239,0.00022998,2]
[312815773,1706293446769,-155.0,0.00022998,2]
[312815775,1706293446791,-172.56303244,0.00022998,2]